lending/lending_fUSD_20251125
["ID","MTS","AMOUNT","RATE_DAILY","PERIOD"]
[394881769,1764059443551,-21230.74702088,0.00017,2]
[394881770,1764059443561,-1387.56,0.00017518,2]
[394881771,1764059443570,-3848.99505202,0.000176,2]
[394881772,1764059443580,-168.235,0.0001764,2]
[394881773,1764059443590,-1051.75,0.0001764,2]
[394881774,1764059443600,-1018.7928615,0.000178,2]
[394881775,1764059443610,-2627.45166029,0.000178,2]
[394881776,1764059443619,-168.7948889,0.000178,2]
[394881777,1764059443629,-1068.65867,0.0001782,2]
[394881778,1764059443639,-500.0,0.00017873,2]
[394881779,1764059443648,-500.0,0.00017873,2]
[394881780,1764059443658,-306.52862923,0.00017899,2]
[394881781,1764059443667,-500.0,0.00017899,2]
[394881782,1764059443677,-382.76387965,0.00017899,2]
[394881783,1764059443686,-500.0,0.00017899,2]
[394881784,1764059443696,-187.4992827,0.00017899,2]
[394881785,1764059443706,-500.0,0.00017899,2]
[394881786,1764059443715,-222.61717631,0.00017899,2]
[394881787,1764059443725,-207.41370764,0.00017899,2]
[394881788,1764059443734,-7439.71217088,0.000179,2]
[394881789,1764059443745,-82668.34796214,0.000179,2]
[394881790,1764059443756,-1971.72035485,0.000179,2]
[394881792,1764059444793,-657.71890407,0.000179,2]
[394881793,1764059444805,-283.26382444,0.000179,2]
[394881794,1764059444816,-270.13551491,0.000179,2]
[394881795,1764059444827,-17760.01013841,0.000179,2]
[394881796,1764059444838,-349.1955382,0.000179,2]
[394881804,1764059445511,-820.03409991,0.000179,2]
[394881806,1764059445554,-4324.31919412,0.000179,2]
[394881808,1764059445566,-409.3595,0.000179,2]
[394881810,1764059445578,-325.0,0.000179,2]
[394881813,1764059445599,-643.0000012,0.000179,2]
[394881815,1764059445609,-1245.6875,0.000179,2]
[394881818,1764059445742,-1254.49405122,0.000179,2]
[394881819,1764059445754,-4054.3821137,0.000179,2]
[394881820,1764059445791,-341.395,0.000179,2]
[394881821,1764059445837,-5346.0,0.000179,2]
[394881844,1764059554376,539.0,0.00014711,2]
[394882031,1764060631561,-326.07383399,0.00017442,2]
[394882032,1764060631571,-147.24616601,0.00017445,2]
[394882033,1764060631667,-816.33153399,0.00017445,2]
[394882034,1764060631676,-250.36769787,0.00017473,2]
[394882035,1764060631694,-2769.06317164,0.00017516,2]
[394882036,1764060631706,-151.0,0.00017542,2]
[394882037,1764060631716,-300.0,0.00017542,2]
[394882038,1764060631726,-1200.0,0.00017542,2]
[394882039,1764060631737,-300.0,0.00017543,2]
[394882040,1764060631747,-169.90436563,0.00017544,2]
[394882041,1764060631756,-180.44753996,0.00017544,2]
[394882042,1764060631765,-500.0,0.00017544,2]
[394882043,1764060631775,-500.0,0.00017544,2]
[394882044,1764060631784,-500.0,0.00017544,2]
[394882045,1764060631794,-500.0,0.00017544,2]
[394882046,1764060631803,-449.17700367,0.00017544,2]
[394882047,1764060631813,-500.0,0.00017544,2]
[394882048,1764060631823,-500.0,0.00017544,2]
[394882049,1764060631833,-500.0,0.00017544,2]
[394882050,1764060631843,-500.0,0.00017544,2]
[394882051,1764060631852,-500.0,0.00017544,2]
[394882052,1764060631861,-500.0,0.00017544,2]
[394882053,1764060631871,-500.0,0.00017544,2]
[394882054,1764060631882,-500.0,0.00017544,2]
[394882055,1764060631892,-500.0,0.00017544,2]
[394882056,1764060631901,-500.0,0.00017544,2]
[394882057,1764060631911,-180.2398157,0.00017544,2]
[394882058,1764060631921,-792.8,0.00017544,2]
[394882059,1764060631930,-7208.89258367,0.00017545,2]
[394882060,1764060631943,-974.17884844,0.00017545,2]
[394882061,1764060631953,-339.75260614,0.00017545,2]
[394882062,1764060631965,-1468.67056078,0.00017545,2]
[394882063,1764060631975,-1315.64532491,0.00017545,2]
[394882064,1764060631987,-580.36061433,0.00017545,2]
[394882066,1764060631998,-909.89021096,0.00017545,2]
[394882068,1764060632009,-756.71092669,0.00017545,2]
[394882070,1764060632020,-4806.29998,0.00017545,2]
[394882073,1764060632035,-2073.29589676,0.00017545,2]
[394882215,1764060637667,-19790.25021689,0.00017545,2]
[394882216,1764060637678,-2107.05010355,0.00017545,2]
[394882217,1764060637689,-498.98998669,0.00017545,2]
[394882218,1764060637721,-1616.09048088,0.00017545,2]
[394882219,1764060637733,-675.01067611,0.00017545,2]
[394882220,1764060637793,-1294.22726958,0.00017545,2]
[394882225,1764060639866,-1000.0,0.00017445,2]
[394882226,1764060639876,-6693.5804281,0.00017545,2]
[394882227,1764060639972,-4979.76509798,0.00017545,2]
[394882229,1764060640078,-664.00328713,0.00017545,2]
[394882250,1764060643326,-3368.98,0.00017545,2]
[394882251,1764060644315,-66657.64910273,0.00017545,2]
[394882252,1764060644326,-25186.3396482,0.00017545,2]
[394882253,1764060644339,-117712.11128218,0.00017545,2]
[394882254,1764060644639,500.0,0.00016768,2]
[394882262,1764060645729,-2147.1,0.00017545,2]
[394882263,1764060645741,-118087.8857673,0.00017545,2]
[394882264,1764060645751,-500.0,0.00017573,2]
[394882265,1764060645760,-500.0,0.00017573,2]
[394882266,1764060645769,-503.38972725,0.00017573,2]
[394882267,1764060645779,-501.39369144,0.00017573,2]
[394882268,1764060645789,-500.0,0.00017573,2]
[394882269,1764060645799,-500.0,0.00017573,2]
[394882270,1764060645808,-151.0,0.00017642,2]
[394882271,1764060645817,-214.57004046,0.00017644,2]
[394882272,1764060645827,-500.0,0.00017644,2]
[394882273,1764060645836,-267.93471576,0.00017644,2]
[394882274,1764060645846,-500.0,0.00017644,2]
[394882275,1764060645856,-227.55179633,0.00017644,2]
[394882276,1764060645865,-568.5648569,0.00017644,2]
[394882277,1764060645877,-128508.7131469,0.00017645,2]
[394882278,1764060645888,-46237.4274322,0.00017645,2]
[394882279,1764060645899,-9995.8795949,0.00017645,2]
[394882280,1764060645908,-501.82898395,0.00017673,2]
[394882281,1764060645918,-200.0,0.00017682,2]
[394882282,1764060645928,-1732.55050065,0.00017782,2]
[394882283,1764060645938,-1000.0,0.00017799,2]
[394882284,1764060645948,-7844.8971,0.00017799,2]
[394882285,1764060645958,-792.8,0.00017818,2]
[394882286,1764060645967,-287.32928026,0.00017899,2]
[394882287,1764060645977,-500.0,0.00017899,2]
[394882288,1764060645986,-160.51919703,0.000179,2]
[394882289,1764060645995,-169.21912271,0.000179,2]
[394882290,1764060646005,-1176.7512,0.000179,2]
[394882291,1764060646015,-560.06947666,0.00017973,2]
[394882292,1764060646024,-150.0,0.00017989,2]
[394882293,1764060646034,-152.07277894,0.00017989,2]
[394882294,1764060646043,-150.0,0.00017989,2]
[394882295,1764060646052,-150.0,0.00017989,2]
[394882296,1764060646061,-150.0,0.00017989,2]
[394882297,1764060646071,-150.0,0.00017989,2]
[394882298,1764060646082,-288.12557967,0.00017989,2]
[394882299,1764060646092,-254.37788025,0.00017989,2]
[394882300,1764060646102,-222.31104798,0.00017989,2]
[394882301,1764060646112,-168.60402235,0.00017989,2]
[394882302,1764060646122,-150.0,0.00017989,2]
[394882303,1764060646131,-249.73312259,0.00017989,2]
[394882304,1764060646140,-151.0,0.00017989,2]
[394882305,1764060646150,-158.73777718,0.00017989,2]
[394882306,1764060646159,-239.98063635,0.00017989,2]
[394882307,1764060646169,-151.0,0.00017989,2]
[394882308,1764060646179,-151.0,0.00017989,2]
[394882309,1764060646189,-151.0,0.00017989,2]
[394882310,1764060646201,-151.0,0.00017989,2]
[394882311,1764060646211,-151.0,0.00017989,2]
[394882312,1764060646221,-151.0,0.00017989,2]
[394882313,1764060646230,-151.0,0.00017989,2]
[394882314,1764060646246,-151.0,0.00017989,2]
[394882315,1764060646256,-151.0,0.00017989,2]
[394882316,1764060646265,-151.0,0.00017989,2]
[394882317,1764060646277,-151.0,0.00017989,2]
[394882318,1764060646287,-151.0,0.00017989,2]
[394882319,1764060646296,-151.0,0.00017989,2]
[394882321,1764060646306,-151.0,0.00017989,2]
[394882322,1764060646317,-151.0,0.00017989,2]
[394882323,1764060646326,-151.0,0.00017989,2]
[394882324,1764060646336,-151.0,0.00017989,2]
[394882325,1764060646347,-151.0,0.00017989,2]
[394882326,1764060646357,-151.0,0.00017989,2]
[394882327,1764060646367,-151.0,0.00017989,2]
[394882328,1764060646376,-500.0,0.00017989,2]
[394882329,1764060646386,-100.21790163,0.00017989,2]
[394882330,1764060646399,-399.78209837,0.00017989,2]
[394882331,1764060646408,-439.28069167,0.00017989,2]
[394882332,1764060646420,-60.71930833,0.00017989,2]
[394882333,1764060646430,-500.0,0.00017989,2]
[394882334,1764060646440,-500.0,0.00017989,2]
[394882335,1764060646450,-500.0,0.00017989,2]
[394882336,1764060646460,-500.0,0.00017989,2]
[394882337,1764060646469,-500.0,0.00017989,2]
[394882338,1764060646479,-170.25,0.00017989,2]
[394882339,1764060646488,-211.27198376,0.0001799,2]
[394882340,1764060646498,-68132.3582579,0.00018,2]
[394882341,1764060646510,-16980.4662963,0.00018,2]
[394882342,1764060646522,-2174.98990941,0.00018,2]
[394882343,1764060646534,-958.35448133,0.00018,2]
[394882344,1764060646545,-1578.3268166,0.00018,2]
[394882345,1764060646557,-9098.36906577,0.00018,2]
[394882346,1764060646569,-341.27162896,0.00018,2]
[394882347,1764060646580,-945.89473246,0.00018,2]
[394882416,1764061177692,370.84,0.00013699,2]
[394882497,1764061389156,1000.0,0.0001692,2]
[394882498,1764061390702,1096.0,0.00016905,2]
[394882499,1764061395713,1096.0,0.0001606,2]
[394882500,1764061400644,1096.0,0.00015257,2]
[394882502,1764061405820,542.72331421,0.000145,2]
[394882558,1764061466600,1594.92,0.0001692,2]
[394882564,1764061545665,-280.0,0.00017052,2]
[394882570,1764061580015,903.51668579,0.00016438,2]
[394882594,1764061831846,-1868.06331421,0.00016438,2]
[394882595,1764061831857,-150.0,0.00016902,2]
[394882596,1764061831868,-109.75,0.00017052,2]
[394882597,1764061831879,-841.4,0.00017096,2]
[394882598,1764061831890,-168.235,0.00017096,2]
[394882599,1764061831901,-516.77,0.00017284,2]
[394882600,1764061831913,-1200.0,0.00017343,2]
[394882601,1764061831924,-769.0,0.00017343,2]
[394882602,1764061831936,-300.0,0.00017344,2]
[394882603,1764061831946,-300.0,0.00017344,2]
[394882604,1764061831957,-24697.4807,0.00017345,2]
[394882605,1764061831967,-2500.0,0.00017345,2]
[394882606,1764061831978,-2492.15685453,0.00017345,2]
[394882607,1764061831988,-166.69,0.0001737,2]
[394882608,1764061831999,-999.0,0.00017385,3]
[394882609,1764061832010,-151.0,0.00017434,2]
[394882611,1764061832020,-16355.8545,0.00017445,2]
[394882613,1764061832030,-1072.67,0.0001748,2]
[394882616,1764061832039,-151.0,0.00017489,2]
[394882617,1764061832050,-247.3030138,0.00017544,2]
[394882620,1764061832060,-6362.07,0.00017662,2]
[394882622,1764061832071,-250.0,0.00017668,2]
[394882624,1764061832081,-198.0,0.0001768,2]
[394882626,1764061832091,-421.09526351,0.00017716,2]
[394882628,1764061832103,-1096.0,0.00017795,2]
[394882630,1764061832124,-431.0,0.00017883,2]
[394882631,1764061832139,-1319.82992733,0.00017899,2]
[394882633,1764061832153,-237.00737729,0.000179,2]
[394882636,1764061832166,-2000.0,0.000179,2]
[394882637,1764061832176,-2000.0,0.000179,2]
[394882638,1764061832187,-2000.0,0.000179,2]
[394882639,1764061832197,-2000.0,0.000179,2]
[394882640,1764061832207,-2000.0,0.000179,2]
[394882641,1764061832217,-921.092,0.000179,2]
[394882642,1764061832227,-1000.0,0.000179,2]
[394882643,1764061832238,-1000.0,0.000179,2]
[394882644,1764061832249,-1000.0,0.000179,2]
[394882645,1764061832259,-1000.0,0.000179,2]
[394882646,1764061832270,-1000.0,0.000179,2]
[394882647,1764061832281,-1000.0,0.000179,2]
[394882648,1764061832293,-1000.0,0.000179,2]
[394882649,1764061832309,-1000.0,0.000179,2]
[394882650,1764061832320,-1000.0,0.000179,2]
[394882651,1764061832330,-1000.0,0.000179,2]
[394882652,1764061832341,-1000.0,0.000179,2]
[394882653,1764061832352,-1000.0,0.000179,2]
[394882654,1764061832363,-1000.0,0.000179,2]
[394882655,1764061832375,-1000.0,0.000179,2]
[394882656,1764061832385,-276.007,0.000179,2]
[394882657,1764061832397,-658.98,0.000179,2]
[394882658,1764061832408,-219.07173561,0.000179,2]
[394882659,1764061832419,-195.28942372,0.000179,2]
[394882660,1764061832430,-500.0,0.00017973,2]
[394882661,1764061832440,-500.0,0.00017973,2]
[394882662,1764061832451,-171.28775345,0.00017973,2]
[394882663,1764061832462,-500.0,0.00017973,2]
[394882664,1764061832473,-151.89822632,0.00017989,2]
[394882665,1764061832484,-150.0,0.00017989,2]
[394882666,1764061832495,-150.0,0.00017989,2]
[394882667,1764061832506,-274.89253593,0.00017989,2]
[394882668,1764061832517,-150.0,0.00017989,2]
[394882669,1764061832529,-150.0,0.00017989,2]
[394882670,1764061832540,-150.0,0.00017989,2]
[394882671,1764061832553,-150.0,0.00017989,2]
[394882672,1764061832563,-277.23860218,0.00017989,2]
[394882673,1764061832575,-150.0,0.00017989,2]
[394882674,1764061832586,-500.0,0.00017989,2]
[394882675,1764061832598,-152.7582617,0.00017989,2]
[394882676,1764061832608,-150.58307261,0.00017989,2]
[394882677,1764061832620,-500.0,0.00017989,2]
[394882678,1764061832630,-150.0,0.00017989,2]
[394882679,1764061832640,-150.0,0.00017989,2]
[394882680,1764061832650,-150.0,0.00017989,2]
[394882681,1764061832661,-150.0,0.00017989,2]
[394882682,1764061832672,-278.06322707,0.00017989,2]
[394882683,1764061832682,-151.0,0.00017989,2]
[394882684,1764061832693,-151.0,0.00017989,2]
[394882685,1764061832703,-151.0,0.00017989,2]
[394882686,1764061832714,-151.0,0.00017989,2]
[394882687,1764061832725,-151.0,0.00017989,2]
[394882688,1764061832736,-151.0,0.00017989,2]
[394882689,1764061832746,-151.0,0.00017989,2]
[394882690,1764061832757,-500.0,0.00017989,2]
[394882691,1764061832768,-233.28349207,0.0001799,2]
[394882692,1764061832779,-9913.4415544,0.00017997,2]
[394882693,1764061832790,-6205.39164605,0.00017999,2]
[394882694,1764061832926,-24929.2848947,0.00017999,2]
[394882695,1764061832939,-1716.78900025,0.00017999,2]
[394882696,1764061832950,-27552.6491799,0.00017999,2]
[394882697,1764061832961,-2820.0,0.00018,2]
[394882698,1764061832975,-13609.12852239,0.00018,2]
[394882699,1764061832989,-43493.21204765,0.00018,2]
[394882700,1764061833002,-54039.8982622,0.00018,2]
[394882701,1764061833015,-846.0,0.00018,2]
[394882702,1764061833038,-6774.99999975,0.00018,2]
[394882703,1764061833053,-21787.5,0.00018,2]
[394882704,1764061833065,-716.66,0.00018,2]
[394882705,1764061833078,-587.64912257,0.00018,2]
[394882706,1764061837831,-86677.40862877,0.00018,2]
[394882707,1764061837843,-2758.19264999,0.00018,2]
[394882708,1764061837985,-2177.62818745,0.00018,2]
[394882711,1764061840037,-520.0,0.00018,2]
[394882712,1764061840091,-1292.1791997,0.00018,2]
[394882713,1764061840102,-3890.74078357,0.00018,2]
[394882714,1764061840144,-25393.46381551,0.00018,2]
[394882715,1764061840199,-7542.73406899,0.00018,2]
[394882726,1764061843729,-192390.64364347,0.00018,2]
[394882728,1764061843741,-57560.99344669,0.00018,2]
[394882729,1764061844627,-6099.83665252,0.00018,2]
[394882730,1764061844734,-4004.01224088,0.00018,2]
[394882734,1764061845955,-862.07121,0.00018,2]
[394882735,1764061846220,-1229.78930741,0.00018,2]
[394882736,1764061846275,-68759.67275722,0.00018,2]
[394882857,1764062487274,160.2,8.256e-05,2]
[394882858,1764062487488,160.2,9.632e-05,2]
[394882859,1764062487692,160.2,0.00011008,2]
[394882860,1764062487878,160.2,0.00012384,2]
[394882861,1764062488092,160.2,0.0001376,2]
[394882874,1764062625604,-160.2,0.00015136,2]
[394882875,1764062625833,-157.21893183,0.00015468,2]
[394882876,1764062625861,-1000.0,0.000158,2]
[394882877,1764062625892,-300.0,0.000159,2]
[394882878,1764062625919,-1000.0,0.00016,2]
[394882879,1764062625946,-1000.0,0.000162,2]
[394882880,1764062625974,-3279.17,0.00016228,2]
[394882881,1764062626002,-5187.72,0.00016463,2]
[394882882,1764062626030,-166.66,0.0001651,2]
[394882883,1764062626059,-160.2,0.00016512,2]
[394882884,1764062626091,-916.0,0.00016649,2]
[394882885,1764062626119,-250.0,0.0001665,2]
[394882886,1764062626150,-346.0695808,0.0001665,2]
[394882887,1764062626179,-250.0,0.0001665,2]
[394882888,1764062626209,-300.0,0.0001665,2]
[394882889,1764062626242,-169.24596352,0.0001665,2]
[394882890,1764062626273,-150.0,0.0001669,2]
[394882891,1764062626306,-200.0,0.0001669,2]
[394882892,1764062626327,-160.2,0.000168,2]
[394882893,1764062626338,-157.21893183,0.000168,2]
[394882894,1764062626354,-1000.0,0.000168,2]
[394882895,1764062626366,-300.0,0.000168,2]
[394882896,1764062626377,-1000.0,0.000168,2]
[394882897,1764062626389,-1000.0,0.000168,2]
[394882898,1764062626400,-3279.17,0.000168,2]
[394882899,1764062626411,-5187.72,0.000168,2]
[394882900,1764062626422,-166.66,0.000168,2]
[394882901,1764062626434,-160.2,0.000168,2]
[394882902,1764062626446,-916.0,0.000168,2]
[394882903,1764062626458,-250.0,0.000168,2]
[394882904,1764062626470,-346.0695808,0.000168,2]
[394882905,1764062626482,-101.76148737,0.000168,2]
[394882906,1764062626492,-148.23851263,0.00016857,2]
[394882907,1764062626504,-18.42148737,0.00016857,2]
[394882908,1764062626514,-281.57851263,0.00017,2]
[394882909,1764062626526,-169.24596352,0.00017,2]
[394882910,1764062626537,-56.23174859,0.00017,2]
[394882911,1764062626547,-93.76825141,0.00017037,2]
[394882912,1764062626559,-58.97174859,0.00017037,2]
[394882913,1764062626569,-141.02825141,0.00017205,2]
[394882914,1764062626580,-15.0310477,0.00017205,2]
[394882925,1764062709128,-4282.86550556,0.000168,2]
[394882926,1764062709183,-10.60070089,0.00017205,2]
[394882927,1764062709222,-250.0,0.00017224,2]
[394882928,1764062709263,-355.82413015,0.00017224,2]
[394882929,1764062709305,-245.7626,0.00017245,2]
[394882930,1764062709362,-1000.0,0.00017245,2]
[394882931,1764062709397,-1200.0,0.00017271,2]
[394882932,1764062709432,-550.0,0.00017272,2]
[394882933,1764062709462,-300.0,0.00017272,2]
[394882934,1764062709491,-300.0,0.00017272,2]
[394882935,1764062709519,-168.235,0.00017273,2]
[394882936,1764062709548,-803.064,0.00017273,2]
[394882937,1764062709578,-321.05396806,0.00017273,2]
[394882942,1764062843153,-300.0,0.00016199,2]
[394882943,1764062843184,-300.0,0.00016199,2]
[394882944,1764062843223,-10688.14,0.000162,5]
[394882945,1764062843457,-10856.42371453,0.000162,5]
[394882999,1764063032061,-329.24117934,0.000161,3]
[394883007,1764063032167,-666.0,0.000161,3]
[394883008,1764063032178,-4526.75882066,0.000161,3]
[394883009,1764063032188,-960.0,0.00016199,2]
[394883010,1764063032197,-300.0,0.00016199,2]
[394883011,1764063032207,-1200.0,0.00016199,2]
[394883012,1764063032217,-11567.29,0.00016729,2]
[394883013,1764063032226,-697.65,0.00016802,2]
[394883014,1764063032236,-200.0,0.00016844,2]
[394883015,1764063032245,-1852.42,0.00016887,2]
[394883016,1764063032256,-550.0,0.00016999,2]
[394883017,1764063032268,-21626.18862395,0.00017,2]
[394883018,1764063032278,-452.14031164,0.00017,2]
[394883019,1764063032306,-4006.16353327,0.00017,2]
[394883020,1764063032317,-7332.79386504,0.00017,2]
[394883021,1764063032351,-29239.77305916,0.00017,2]
[394883022,1764063032361,-225.36630223,0.00017,2]
[394883023,1764063032371,-500.0,0.00017243,2]
[394883024,1764063032380,-500.0,0.00017243,2]
[394883025,1764063032389,-500.0,0.00017243,2]
[394883026,1764063032398,-500.0,0.00017243,2]
[394883027,1764063032407,-600.67245409,0.00017243,2]
[394883028,1764063032416,-500.0,0.00017243,2]
[394883029,1764063032426,-500.0,0.00017243,2]
[394883030,1764063032435,-3.05310215,0.00017243,2]
[394883031,1764063032449,-496.94689785,0.00017243,2]
[394883032,1764063032458,-500.0,0.00017243,2]
[394883034,1764063032468,-500.0,0.00017243,2]
[394883036,1764063032477,-500.0,0.00017243,2]
[394883038,1764063032486,-500.0,0.00017243,2]
[394883040,1764063032495,-500.0,0.00017243,2]
[394883042,1764063032504,-500.0,0.00017243,2]
[394883044,1764063032512,-285.36660273,0.00017243,2]
[394883045,1764063032526,-214.63339727,0.00017243,2]
[394883047,1764063032536,-500.0,0.00017243,2]
[394883049,1764063032545,-500.0,0.00017243,2]
[394883051,1764063032554,-500.0,0.00017243,2]
[394883052,1764063032745,-500.0,0.00017243,2]
[394883053,1764063032755,-230.21876278,0.00017243,2]
[394883054,1764063032764,-528.53857884,0.00017244,2]
[394883107,1764063040303,-5522.0,0.000165,5]
[394883108,1764063040313,-500.0,0.00017243,2]
[394883109,1764063040322,-500.0,0.00017243,2]
[394883110,1764063040331,-500.0,0.00017243,2]
[394883111,1764063040342,-500.0,0.00017243,2]
[394883112,1764063040352,-500.0,0.00017243,2]
[394883113,1764063040361,-500.0,0.00017243,2]
[394883114,1764063040371,-500.0,0.00017243,2]
[394883115,1764063040380,-500.0,0.00017243,2]
[394883116,1764063040390,-500.0,0.00017243,2]
[394883117,1764063040399,-500.0,0.00017243,2]
[394883118,1764063040409,-500.0,0.00017243,2]
[394883119,1764063040418,-500.0,0.00017243,2]
[394883120,1764063040428,-500.0,0.00017243,2]
[394883121,1764063040438,-500.0,0.00017243,2]
[394883122,1764063040447,-500.0,0.00017243,2]
[394883123,1764063040456,-500.0,0.00017243,2]
[394883124,1764063040466,-500.0,0.00017243,2]
[394883125,1764063040475,-500.0,0.00017243,2]
[394883126,1764063040485,-500.0,0.00017243,2]
[394883127,1764063040494,-500.0,0.00017243,2]
[394883128,1764063040503,-500.0,0.00017243,2]
[394883129,1764063040512,-527.4913486,0.00017243,2]
[394883130,1764063040522,-500.0,0.00017243,2]
[394883131,1764063040532,-500.0,0.00017243,2]
[394883132,1764063040542,-500.0,0.00017243,2]
[394883133,1764063040551,-1916.25702701,0.00017244,2]
[394883134,1764063040563,-12704.44840072,0.00017244,2]
[394883135,1764063040575,-288.05210084,0.00017244,2]
[394883136,1764063040588,-763.45759774,0.00017244,2]
[394883137,1764063040600,-4353.48,0.00017244,2]
[394883138,1764063040611,-33746.97600001,0.00017244,2]
[394883139,1764063040627,-396.71618048,0.00017244,2]
[394883145,1764063040940,-3757.30442948,0.00017244,2]
[394883148,1764063040952,-731.39609495,0.00017244,2]
[394883215,1764063044404,-1182.47375131,0.00017244,2]
[394883216,1764063044512,-46391.13298573,0.00017244,2]
[394883217,1764063044569,-2503.12,0.00017244,2]
[394883218,1764063044626,-4353.48,0.00017244,2]
[394883220,1764063044638,-1314.02272235,0.00017244,2]
[394883230,1764063046332,-1287.88065478,0.00017244,2]
[394883231,1764063046345,-2429.94019999,0.00017244,2]
[394883232,1764063046388,-2875.873,0.00017244,2]
[394883233,1764063046401,-5763.26927517,0.00017244,2]
[394883234,1764063046443,-302.0,0.00017244,2]
[394883254,1764063110803,179.34,0.00022,30]
[394883430,1764063953388,173.575465,0.00015,2]
[394883540,1764064232297,-999.0,0.00016496,3]
[394883541,1764064232309,-300.0,0.00016515,2]
[394883542,1764064232319,-954.41808677,0.00016534,2]
[394883543,1764064232352,-245.58191323,0.00016534,2]
[394883544,1764064232363,-7348.56,0.00016535,2]
[394883545,1764064232372,-368.02939047,0.00016942,2]
[394883546,1764064232382,-177.33152022,0.00017042,2]
[394883547,1764064232391,-300.0,0.00017099,2]
[394883548,1764064232400,-300.0,0.00017099,2]
[394883549,1764064232410,-187.0,0.000171,2]
[394883550,1764064232419,-1836.81953,0.000171,2]
[394883551,1764064232429,-578.20924308,0.000171,2]
[394883552,1764064232438,-500.0,0.000171,2]
[394883553,1764064232447,-550.0,0.00017132,2]
[394883554,1764064232457,-1189.38,0.00017132,2]
[394883555,1764064232466,-500.0,0.00017132,2]
[394883556,1764064232476,-276.14753674,0.00017132,2]
[394883557,1764064232486,-428.61855998,0.00017132,2]
[394883558,1764064232495,-253.49646691,0.00017132,2]
[394883559,1764064232504,-500.0,0.00017132,2]
[394883560,1764064232513,-500.0,0.00017132,2]
[394883561,1764064232522,-344.51916157,0.00017132,2]
[394883562,1764064232532,-462.82751003,0.00017132,2]
[394883563,1764064232554,-37.17248997,0.00017132,2]
[394883564,1764064232564,-500.0,0.00017132,2]
[394883565,1764064232573,-500.0,0.00017132,2]
[394883566,1764064232583,-501.00884214,0.00017132,2]
[394883567,1764064232592,-78.29147756,0.00017132,2]
[394883610,1764064238279,-421.70852244,0.00017132,2]
[394883611,1764064238290,-500.0,0.00017132,2]
[394883612,1764064238299,-500.0,0.00017132,2]
[394883613,1764064238310,-196.55943663,0.00017132,2]
[394883614,1764064238320,-500.0,0.00017132,2]
[394883615,1764064238330,-303.35764031,0.00017132,2]
[394883616,1764064238341,-500.0,0.00017132,2]
[394883617,1764064238350,-500.0,0.00017132,2]
[394883618,1764064238361,-500.0,0.00017132,2]
[394883619,1764064238371,-500.0,0.00017132,2]
[394883620,1764064238380,-500.0,0.00017132,2]
[394883621,1764064238390,-500.0,0.00017132,2]
[394883622,1764064238401,-500.0,0.00017132,2]
[394883623,1764064238411,-500.0,0.00017132,2]
[394883624,1764064238420,-500.0,0.00017132,2]
[394883625,1764064238431,-500.0,0.00017132,2]
[394883626,1764064238442,-500.0,0.00017132,2]
[394883627,1764064238452,-500.0,0.00017132,2]
[394883628,1764064238462,-500.0,0.00017132,2]
[394883629,1764064238472,-500.0,0.00017132,2]
[394883630,1764064238482,-500.0,0.00017132,2]
[394883631,1764064238492,-500.0,0.00017132,2]
[394883632,1764064238502,-500.0,0.00017132,2]
[394883633,1764064238512,-500.0,0.00017132,2]